bitfinex/quotes_ETHUSD_20260119
["timestamp","ask_amount","ask_price","bid_price","bid_amount"]
[1768800433319,1.90050313,3197.4,3196.9,6.77106054]
[1768800434389,0.516,3197.8,3196.9,6.77106054]
[1768800434618,7.03461152,3198.2,3197.0,1.9357813]
[1768800434824,1.90050313,3198.0,3197.0,1.9357813]
[1768800435691,1.90050313,3198.0,3197.1,6.2556692]
[1768800436394,1.90050313,3198.0,3197.1,8.1914505]
[1768800437617,1.90050313,3198.0,3196.8,3.12812812]
[1768800437823,1.90050313,3197.8,3197.2,0.516]
[1768800438023,1.90050313,3197.8,3197.3,0.516]
[1768800438212,1.90050313,3197.8,3197.4,0.516]
[1768800439610,1.90050313,3197.8,3196.8,6.25625624]
[1768800439812,1.90050313,3197.8,3197.2,0.516]
[1768800440631,1.90050313,3197.7,3197.2,0.516]
[1768800441735,1.90050313,3197.7,3197.2,3.64373624]
[1768800443314,1.90050313,3197.7,3197.2,0.516]
[1768800443715,1.90050313,3197.7,3197.4,0.002]
[1768800444718,1.28430235,3197.9,3197.4,0.002]
[1768800444919,1.28430235,3197.8,3197.4,0.002]
[1768800448940,1.28430235,3197.8,3197.5,0.516]
[1768800449120,1.28430235,3197.6,3197.3,0.516]
[1768800449315,1.28430235,3197.6,3196.8,1.25699321]
[1768800449519,1.28430235,3197.6,3196.9,3.64401802]
[1768800451043,1.28430235,3197.6,3196.9,3.12801802]
[1768800451246,1.28430235,3197.5,3197.0,0.516]
[1768800453129,1.28430235,3197.5,3197.0,1.77299321]
[1768800453330,1.28430235,3197.5,3197.0,1.25699321]
[1768800453544,1.28430235,3197.5,3197.0,1.77299321]
[1768800454150,1.28430235,3197.5,3197.0,4.90091467]
[1768800455752,1.28430235,3197.5,3197.3,0.002]
[1768800456045,0.001,3197.4,3197.3,0.002]
[1768800456249,1.28530235,3197.4,3197.3,0.002]
[1768800456649,1.28530235,3197.4,3197.0,0.002]
[1768800457668,1.28530235,3197.4,3197.0,3.12993031]
[1768800457971,1.28530235,3197.4,3197.0,0.002]
[1768800458638,1.21144864,3197.3,3196.8,3.64406815]
[1768800458848,1.21144864,3197.3,3196.7,2.51908682]
[1768800458849,1.21144864,3197.3,3196.7,4.90627737]
[1768800459048,1.21144864,3197.2,3196.7,4.90627737]
[1768800460423,1.21144864,3197.2,3196.7,4.39027737]
[1768800460620,1.21144864,3197.2,3196.6,3.12825525]
[1768800460927,1.21144864,3197.2,3196.1,0.002]
[1768800460928,1.21144864,3197.1,3196.7,1.19545457]
[1768800461271,7.05052451,3197.3,3196.3,3.12860231]
[1768800461272,0.08186025,3196.7,3196.3,3.12860231]
[1768800461519,0.08186025,3196.7,3196.0,4.34674067]
[1768800461520,1.21144864,3196.6,3196.0,4.34674067]
[1768800461683,1.21144864,3196.6,3196.1,3.12881234]
[1768800461886,1.21244864,3197.4,3196.3,1.19545457]
[1768800462198,1.21244864,3197.4,3196.4,1.19545457]
[1768800462517,1.21244864,3197.4,3196.5,7.45229799]
[1768800462713,1.21244864,3197.4,3196.6,1.19545457]
[1768800463219,1.21144864,3197.1,3196.4,4.32395477]
[1768800463367,1.21144864,3197.0,3196.4,4.32395477]
[1768800463572,1.21144864,3197.0,3196.3,4.32404246]
[1768800463798,1.21144864,3197.0,3196.4,1.19545457]
[1768800464498,1.21144864,3197.0,3196.4,4.3239653]
[1768800465080,1.21244864,3197.4,3196.6,1.19545457]
[1768800465288,1.21144864,3197.2,3196.6,1.19545457]
[1768800465985,1.21144864,3197.2,3196.5,6.25684342]
[1768800466181,1.21144864,3197.2,3196.5,7.45229799]
[1768800466785,1.21144864,3197.2,3196.6,1.19545457]
[1768800467490,0.517,3197.3,3196.7,1.19545457]
[1768800467711,0.517,3197.2,3196.7,1.19545457]
[1768800468012,0.001,3197.4,3196.7,1.19545457]
[1768800468307,0.001,3197.4,3196.6,0.7452298]
[1768800468308,0.516,3197.3,3197.0,1.19545457]
[1768800468611,0.516,3197.3,3196.9,0.002]
[1768800468788,1.21144864,3197.0,3196.5,0.002]
[1768800468989,1.50111734,3196.9,3196.5,0.002]
[1768800469200,1.21144864,3197.1,3196.5,1.19745457]
[1768800469386,1.21144864,3197.3,3196.5,1.19745457]
[1768800469587,0.80564195,3197.2,3196.5,1.19745457]
[1768800469895,3.12857316,3197.4,3196.5,1.19745457]
[1768800469896,0.516,3197.1,3196.5,1.19745457]
[1768800470098,0.516,3197.0,3196.6,1.19545457]
[1768800470298,0.4667289,3197.1,3196.6,1.19545457]
[1768800470890,0.4667289,3197.1,3196.7,4.32368055]
[1768800471186,1.21244864,3197.4,3196.5,3.13037142]
[1768800471187,1.21144864,3197.2,3196.6,4.32373933]
[1768800471619,0.517,3197.1,3196.6,3.12828476]
[1768800471808,0.517,3197.1,3196.7,1.82132206]
[1768800472514,0.517,3197.1,3196.7,1.19545457]
[1768800472711,1.21144864,3197.2,3196.7,1.19545457]
[1768800473017,1.21144864,3197.2,3196.5,3.13034433]
[1768800473018,1.34678086,3197.0,3196.5,1.32132527]
[1768800473202,1.34678086,3197.3,3196.6,4.44764479]
[1768800473399,0.517,3197.2,3196.7,0.75780465]
[1768800474002,0.517,3197.1,3196.7,2.07712992]
[1768800474198,1.34678086,3197.3,3196.8,1.31932527]
[1768800474402,0.517,3197.2,3196.8,1.31932527]
[1768800475002,0.517,3197.2,3196.9,3.12803027]
[1768800475209,0.517,3197.3,3196.8,4.44744481]
[1768800475700,0.001,3197.4,3196.9,1.31932527]
[1768800475903,0.518,3197.4,3196.9,1.31932527]
[1768800476693,0.001,3197.4,3196.9,1.31932527]
[1768800477622,0.001,3197.4,3197.1,1.31932527]
[1768800477821,1.34678086,3198.3,3197.1,1.31932527]
[1768800478021,1.34678086,3198.3,3197.4,1.31932527]
[1768800478206,1.34678086,3198.3,3197.2,1.31932527]
[1768800478400,1.34678086,3198.3,3197.1,0.516]
[1768800478605,1.34678086,3198.3,3197.2,1.31932527]
[1768800478805,1.34678086,3198.2,3197.2,1.31932527]
[1768800479023,1.34678086,3198.2,3197.4,1.31932527]
[1768800479523,1.34678086,3198.2,3197.6,1.31932527]
[1768800480236,1.34678086,3198.2,3197.4,1.31932527]
[1768800481014,1.34678086,3198.2,3197.0,0.002]
[1768800481015,1.34678086,3197.8,3197.0,0.002]
[1768800481216,1.34678086,3197.6,3197.0,0.002]
[1768800481414,1.34678086,3197.6,3197.0,3.12990815]
[1768800482734,1.34678086,3197.6,3197.0,0.002]
[1768800483204,1.34678086,3197.5,3197.0,0.002]
[1768800488746,1.34678086,3197.4,3197.0,0.002]
[1768800488940,0.516,3197.3,3197.0,0.002]
[1768800489142,3.12738726,3197.6,3197.0,1.32132527]
[1768800489143,1.34678086,3197.6,3197.0,1.32132527]
[1768800489331,0.516,3197.5,3197.0,1.32132527]
[1768800490344,7.05052451,3198.6,3197.0,1.32132527]
[1768800490515,1.34678086,3198.0,3197.1,3.1278346]
[1768800490705,1.34678086,3197.8,3197.2,1.31932527]
[1768800493039,1.34678086,3197.7,3197.3,0.002]
[1768800493242,0.001,3197.5,3197.3,0.002]
[1768800495751,1.34678086,3197.4,3197.3,0.002]
[1768800496056,0.517,3197.5,3197.3,0.002]
[1768800501457,0.001,3197.5,3197.3,0.002]
[1768800501761,0.516,3197.6,3197.4,4.44684858]
[1768800502135,0.516,3197.6,3197.4,3.12752331]
[1768800502633,0.516,3197.7,3197.4,4.52325323]
[1768800502860,1.43580543,3199.1,3197.5,1.39572992]
[1768800503058,10.17552894,3200.0,3197.6,7.05052451]
[1768800503059,1.43580543,3198.9,3197.6,7.05052451]
[1768800503262,1.43580543,3198.7,3197.6,7.05052451]
[1768800503428,1.43580543,3198.5,3197.7,1.39572992]
[1768800503630,0.22415648,3198.8,3197.7,1.39572992]
[1768800503631,1.43580543,3198.3,3197.7,1.39572992]
[1768800504065,1.43580543,3198.3,3197.7,4.52296119]
[1768800505558,0.22415648,3198.8,3197.7,4.52296119]
[1768800505559,1.95180543,3198.2,3197.7,4.52296119]
[1768800506456,0.516,3198.2,3197.8,1.39572992]
[1768800506830,1.43580543,3198.3,3197.8,1.39572992]
[1768800507034,0.516,3198.2,3197.8,1.39572992]
[1768800507662,1.43580543,3198.3,3197.8,2.16075897]
[1768800507863,1.43580543,3198.2,3197.6,4.52301543]
[1768800510566,1.43580543,3198.2,3197.6,1.39572992]
[1768800510765,1.43580543,3198.2,3197.5,3.12743324]
[1768800511068,4.56259039,3198.2,3197.5,3.12743324]
[1768800511265,4.56259039,3198.2,3197.3,4.52535102]
[1768800511266,1.43580543,3198.1,3197.3,0.002]
[1768800511469,1.43580543,3197.9,3197.3,0.002]
[1768800511639,1.43580543,3197.7,3197.3,0.002]
[1768800513438,1.95180543,3197.7,3197.3,0.002]
[1768800513973,1.43580543,3197.6,3197.3,0.002]
[1768800517077,1.43580543,3197.6,3197.3,3.12963894]
[1768800517651,1.43580543,3198.1,3197.3,4.52536886]
[1768800517857,0.516,3198.0,3197.4,1.39572992]
[1768800518068,1.43580543,3197.9,3197.4,1.39572992]
[1768800518378,1.95180543,3197.8,3197.3,3.12963894]
[1768800518878,1.95180543,3197.8,3197.3,4.55127196]
[1768800522284,1.43580543,3197.8,3197.3,4.55127196]
[1768800522453,1.95180543,3197.8,3197.3,4.55127196]
[1768800522649,1.34564918,3198.0,3197.4,1.42163302]
[1768800523076,0.516,3197.9,3197.5,4.54907633]
[1768800523295,1.34564918,3198.0,3197.5,4.54907633]
[1768800523451,1.34564918,3197.9,3197.5,4.54907633]
[1768800526697,0.516,3198.0,3197.5,4.54907633]
[1768800526698,1.34564918,3198.1,3197.6,1.42163302]
[1768800526918,0.516,3198.0,3197.6,1.42163302]
[1768800527616,0.516,3198.0,3197.7,1.42163302]
[1768800527954,1.34564918,3198.1,3197.7,1.42163302]
[1768800528193,1.86164918,3198.1,3197.7,1.42163302]
[1768800528377,0.516,3198.1,3197.7,1.42163302]
[1768800528771,0.001,3197.9,3197.8,3.12714991]
[1768800529168,0.001,3197.9,3197.7,3.1272373]
[1768800530881,1.34564918,3198.2,3197.7,4.54887032]
[1768800531179,1.86164918,3198.2,3197.7,4.54887032]
[1768800532293,0.516,3198.2,3197.8,1.42163302]
[1768800532894,0.516,3198.2,3197.8,4.54873407]
[1768800533399,1.86745035,3198.2,3197.8,4.54873407]
[1768800535367,1.86745035,3198.2,3197.8,3.12710105]
[1768800535567,1.35145035,3198.1,3197.8,3.12710105]
[1768800537198,1.35145035,3198.1,3197.7,3.1272477]
[1768800540210,0.001,3197.9,3197.7,3.1272477]
[1768800540399,0.516,3198.3,3197.7,3.1272477]
[1768800540400,1.86745035,3198.3,3197.8,1.46441178]
[1768800540782,1.35145035,3198.3,3197.8,1.46441178]
[1768800540987,0.516,3198.4,3197.8,1.46441178]
[1768800541197,1.86745035,3198.4,3197.8,1.46441178]
[1768800541378,1.35145035,3198.4,3197.8,1.46441178]
[1768800541772,1.86745035,3198.4,3197.8,1.46441178]
[1768800542919,1.86745035,3198.4,3197.9,4.5914639]
[1768800543203,1.86745035,3198.4,3197.9,1.46441178]
[1768800543383,1.35145035,3198.4,3197.9,1.46441178]
[1768800543582,1.86745035,3198.4,3197.9,1.46441178]
[1768800543816,0.516,3198.4,3197.9,1.46441178]
[1768800543982,1.35145035,3198.3,3197.9,1.46441178]
[1768800545617,1.86745035,3198.4,3198.0,1.46441178]
[1768800545910,1.86745035,3198.4,3197.9,3.12705194]
[1768800546111,1.86745035,3198.4,3197.9,4.59146372]
[1768800546276,1.35145035,3198.4,3197.9,4.59146372]
[1768800546477,0.516,3198.4,3198.0,1.46441178]
[1768800547002,1.35145035,3198.5,3198.0,1.46441178]
[1768800547192,1.86745035,3198.5,3198.0,4.59135157]
[1768800547716,1.35145035,3198.5,3198.1,1.46441178]
[1768800547916,0.516,3198.5,3198.1,1.46441178]
[1768800548701,1.35145035,3198.6,3198.2,3.1267588]
[1768800548903,1.35145035,3198.9,3198.3,1.46441178]
[1768800549103,1.86745035,3198.9,3198.3,1.46441178]
[1768800549287,6.31,3199.8,3198.3,1.46441178]
[1768800549288,1.35145035,3199.1,3198.3,1.46441178]
[1768800549488,0.516,3199.0,3198.3,1.46441178]
[1768800550116,1.35145035,3199.0,3198.3,1.46441178]
[1768800551460,1.53819539,3199.0,3198.3,1.46441178]
[1768800552508,4.66418022,3199.0,3198.3,1.46441178]
[1768800552829,1.35145035,3199.0,3198.5,1.46441178]
[1768800553888,1.35145035,3199.0,3198.5,4.59087616]
[1768800554390,1.35145035,3199.0,3198.1,7.04526671]
[1768800554595,1.35145035,3199.0,3198.3,3.12659676]
[1768800554994,0.516,3199.0,3198.3,3.12659676]
[1768800555198,1.35145035,3198.9,3198.3,3.12659676]
[1768800556229,1.35145035,3198.9,3198.3,1.46441178]
[1768800557146,1.35145035,3198.9,3198.3,4.59102329]
[1768800559456,1.35145035,3198.9,3198.4,1.46441178]
[1768800560214,1.35145035,3198.9,3198.2,1.46441178]
[1768800560420,1.35145035,3198.9,3198.2,4.5910984]
[1768800560736,1.35145035,3198.9,3198.3,3.1266487]
[1768800562209,1.35145035,3198.9,3198.3,1.46441178]
[1768800563224,0.001,3198.6,3198.3,1.46441178]
[1768800563406,0.001,3198.6,3198.3,1.35751083]
[1768800564431,0.001,3198.6,3198.4,1.35751083]
[1768800566341,0.001,3198.6,3198.4,4.48405885]
[1768800566540,1.36296621,3198.9,3198.4,4.48405885]
[1768800566735,1.36296621,3199.1,3198.5,1.35751083]
[1768800567040,0.516,3199.0,3198.5,1.35751083]
[1768800567625,1.87896621,3199.0,3198.5,1.35751083]
[1768800567937,1.36296621,3199.0,3198.5,1.35751083]
[1768800568139,1.87896621,3199.0,3198.5,1.35751083]
[1768800568816,1.36296621,3199.0,3198.6,3.12636778]
[1768800569114,1.87896621,3199.2,3198.7,1.35751083]
[1768800569314,1.36296621,3199.2,3198.7,1.35751083]
[1768800569525,1.87896621,3199.2,3198.7,1.35751083]
[1768800570413,1.36296621,3199.2,3198.7,1.35751083]
[1768800571347,1.36296621,3199.2,3198.7,4.48375844]
[1768800571735,1.36296621,3199.2,3198.7,3.12624761]
[1768800572842,1.36296621,3199.2,3198.8,1.35751083]
[1768800573046,1.36296621,3199.2,3198.7,3.12624761]
[1768800573833,1.36296621,3199.2,3198.6,1.35751083]
[1768800574161,1.36296621,3199.2,3198.5,3.12636937]
[1768800574519,1.36296621,3199.2,3198.6,3.12635427]
[1768800575031,1.36296621,3199.2,3198.6,4.4838651]
[1768800575238,0.001,3198.9,3198.6,4.4838651]
[1768800575423,0.001,3198.9,3198.7,1.35751083]
[1768800576026,1.36296621,3199.2,3198.7,1.35751083]
[1768800577248,1.36296621,3199.2,3198.7,4.48377215]
[1768800577455,1.36296621,3199.2,3198.7,5.24479575]
[1768800577750,1.36296621,3199.2,3198.7,3.88728492]
[1768800578256,1.36296621,3199.4,3198.8,1.35751083]
[1768800578846,1.36296621,3199.4,3198.7,5.2465113]
[1768800580154,1.36296621,3199.4,3198.7,3.88728492]
[1768800580457,1.39169334,3200.4,3199.8,2.71412465]
[1768800580657,1.39169334,3200.4,3199.4,9.76593251]
[1768800580860,1.39169334,3200.4,3199.5,0.516]
[1768800581161,1.39169334,3200.4,3199.5,7.551163]
[1768800581336,1.39169334,3200.3,3199.5,7.551163]
[1768800581542,1.39169334,3200.3,3199.5,10.67662541]
[1768800581842,1.39169334,3200.3,3199.5,12.03585179]
[1768800582042,3.12445124,3200.6,3199.8,8.39438938]
[1768800582237,1.39169334,3200.5,3199.8,7.035163]
[1768800582853,1.39169334,3200.5,3199.8,1.35922638]
[1768800583052,1.39169334,3200.5,3199.8,8.39438938]
[1768800584163,1.39169334,3200.4,3199.8,8.39438938]
[1768800585377,3.64131776,3200.7,3199.8,8.39438938]
[1768800585378,3.64135411,3200.7,3199.9,1.35922638]
[1768800585595,0.001,3201.0,3200.7,1.35922638]
[1768800585746,0.1082676,3201.5,3201.1,7.035163]
[1768800585952,3.12324317,3201.8,3201.0,1.35922638]
[1768800586184,0.02392565,3201.6,3200.8,1.35922638]
[1768800587176,0.02392565,3201.5,3200.8,1.35922638]
[1768800587964,0.01197431,3201.7,3200.9,1.35922638]
[1768800588584,3.12324317,3201.8,3200.9,1.35922638]
[1768800589869,3.12324317,3201.8,3200.7,7.551163]
[1768800589870,3.12276699,3202.3,3201.5,1.35922638]
[1768800590086,0.3122767,3202.2,3201.5,1.35922638]
[1768800592086,3.12295056,3202.1,3201.5,1.35922638]
[1768800597661,0.3122767,3202.2,3201.5,1.35922638]
[1768800597662,3.43515295,3202.2,3201.5,1.35922638]
[1768800597997,6.2457525,3202.2,3201.5,1.35922638]
[1768800598292,0.001,3201.8,3201.5,1.35922638]
[1768800600209,0.001,3201.8,3201.4,1.33167375]
[1768800601999,0.001,3201.8,3201.3,1.33167375]
[1768800602165,0.001,3201.8,3201.3,1.84667375]
[1768800602905,0.001,3201.8,3201.3,1.33167375]
[1768800603070,0.001,3201.8,3201.3,0.515]
[1768800603576,6.245316,3202.4,3201.5,8.36683675]
[1768800603902,0.98849139,3202.3,3201.5,7.035163]
[1768800604113,3.12224538,3202.9,3201.3,0.515]
[1768800604114,3.11673356,3208.5,3204.4,0.05]
[1768800604268,3.11673356,3208.5,3202.2,14.070326]
[1768800604269,1.30345957,3206.7,3205.0,7.035163]
[1768800604470,0.05,3209.3,3203.8,0.128]
[1768800604471,1.30345957,3206.5,3204.7,0.515]
[1768800604673,1.30345957,3206.3,3204.7,1.33167375]
[1768800604972,1.20919028,3206.3,3204.7,1.33167375]
[1768800605190,1.20919028,3206.3,3204.9,1.33167375]
[1768800607096,1.20919028,3206.3,3205.1,1.33167375]
[1768800607372,1.20919028,3206.3,3205.2,2.08886609]
[1768800607570,1.20919028,3206.3,3205.3,1.33167375]
[1768800607794,1.81845957,3206.7,3205.3,1.33167375]
[1768800607999,1.30345957,3206.7,3205.4,1.33167375]
[1768800608316,3.11781851,3207.4,3205.4,1.33167375]
[1768800608317,0.515,3207.1,3205.4,1.33167375]
[1768800608518,1.30345957,3207.0,3205.6,1.33167375]
[1768800608739,1.30345957,3207.3,3205.6,1.33167375]
[1768800609235,1.30345957,3207.3,3205.8,1.33167375]
[1768800609439,1.30345957,3207.3,3206.0,1.33167375]
[1768800609852,0.001,3206.9,3206.0,1.33167375]
[1768800610135,0.001,3206.9,3206.0,1.51634113]
[1768800611438,0.001,3206.9,3205.9,0.515]
[1768800611439,1.30445957,3206.9,3205.6,1.33367375]
[1768800611730,8.07530787,3208.1,3205.6,1.33367375]
[1768800611731,1.30345957,3212.2,3206.0,21.83405582]
[1768800611920,1.30345957,3212.2,3208.9,1.33167375]
[1768800611921,1.30345957,3211.9,3208.9,1.33167375]
[1768800612130,1.30345957,3211.5,3208.9,1.33167375]
[1768800612434,1.30345957,3211.5,3208.2,0.128]
[1768800612435,1.30345957,3211.5,3209.1,1.33167375]
[1768800613302,1.30345957,3211.5,3209.5,1.33167375]
[1768800613530,1.30345957,3211.5,3209.7,1.33167375]
[1768800614711,1.30345957,3211.5,3209.4,3.11584719]
[1768800614712,1.30345957,3211.3,3209.4,3.11584719]
[1768800614998,1.30345957,3211.2,3209.4,3.11584719]
[1768800615314,1.30345957,3211.0,3209.3,3.11592144]
[1768800615623,1.30345957,3210.8,3209.2,3.11604103]
[1768800616134,1.30345957,3210.6,3208.8,3.11634651]
[1768800616300,0.514,3210.5,3208.7,3.11643231]
[1768800616500,1.48520553,3210.4,3208.5,1.33167375]
[1768800616836,3.114121,3211.2,3208.5,1.33167375]
[1768800616837,1.30445957,3212.8,3210.6,2.84067741]
[1768800617132,1.30345957,3212.7,3210.7,0.514]
[1768800617333,1.30345957,3212.7,3209.7,1.53951396]
[1768800617334,1.30345957,3212.5,3209.8,0.514]
[1768800617530,13.11357929,3212.8,3209.9,13.45354552]
[1768800617531,1.30345957,3212.3,3209.9,13.45354552]
[1768800617731,1.30345957,3212.1,3210.2,1.33167375]
[1768800618030,1.30345957,3212.1,3210.3,0.514]
[1768800618233,1.30345957,3212.1,3210.4,1.33167375]
[1768800618412,0.001,3212.8,3210.4,1.33167375]
[1768800618603,0.001,3212.8,3210.3,0.514]
[1768800618604,0.001,3212.8,3210.6,1.33167375]
[1768800618803,0.001,3212.8,3210.8,1.33167375]
[1768800619225,3.11357335,3212.8,3210.8,1.33167375]
[1768800619538,3.11357335,3212.8,3210.7,0.514]
[1768800619539,3.11357335,3212.8,3211.0,1.33167375]
[1768800620040,6.2261467,3212.8,3211.0,1.33167375]
[1768800620211,0.62261467,3212.7,3211.0,1.33167375]
[1768800620736,1.92607424,3212.7,3211.1,0.514]
[1768800620899,1.92607424,3212.7,3211.0,1.33167375]
[1768800621419,1.30345957,3212.6,3211.0,1.84567375]
[1768800621615,1.30345957,3212.6,3211.1,6.22839524]
[1768800621846,1.49606699,3212.5,3211.1,6.22839524]
[1768800622139,1.49706699,3212.5,3210.7,3.11453382]
[1768800622529,0.513,3212.4,3210.8,3.11446768]
[1768800622838,2.82102446,3212.3,3211.0,6.22858909]
[1768800623044,0.33340245,3212.2,3211.0,6.22858909]
[1768800623356,0.33340245,3212.2,3210.9,3.11437527]
[1768800623644,3.1132281,3212.1,3210.4,5.80474196]
[1768800623801,3.1132281,3212.1,3210.4,8.91961861]
[1768800623802,2.82102446,3212.0,3210.4,8.91961861]
[1768800624734,2.82102446,3212.0,3210.0,3.11522108]
[1768800624735,2.82102446,3212.0,3210.0,2.68986531]
[1768800624928,2.82102446,3211.8,3210.0,2.68986531]
[1768800625116,2.82102446,3211.8,3210.3,8.91980206]
[1768800625444,3.33402446,3211.8,3210.4,2.68986531]
[1768800625752,3.33402446,3211.8,3210.5,6.22955924]
[1768800625923,0.42387725,3211.7,3210.5,6.22955924]
[1768800626337,0.42387725,3211.7,3210.5,3.11477962]
[1768800626592,0.42387725,3211.7,3210.5,6.22955924]
[1768800627542,0.42387725,3211.7,3210.5,3.11477962]
[1768800627743,0.42387725,3211.7,3210.5,6.22955924]
[1768800627744,3.53749913,3211.7,3210.5,6.22955924]
[1768800628057,3.50817682,3211.6,3210.4,3.11486362]
[1768800628471,3.50817682,3211.6,3209.0,3.24415788]
[1768800628674,3.50817682,3211.6,3209.5,2.68986531]
[1768800629166,3.50817682,3211.6,3209.6,3.11558515]
[1768800629313,2.82102446,3211.3,3209.1,2.68986531]
[1768800629514,2.82102446,3211.1,3209.1,5.80594055]
[1768800629747,2.82102446,3210.9,3209.1,2.68986531]
[1768800629958,2.82102446,3210.9,3209.1,3.11613358]
[1768800630173,2.82102446,3210.7,3209.0,5.80609515]
[1768800630350,2.82102446,3210.5,3208.6,2.68986531]
[1768800630556,2.82102446,3210.5,3208.2,2.68986531]
[1768800630865,2.82102446,3210.5,3208.1,0.513]
[1768800630866,2.82102446,3210.5,3208.6,10.76517318]
[1768800631050,0.513,3210.4,3209.1,3.11611246]
[1768800631242,3.33402446,3210.4,3208.8,2.68986531]
[1768800631449,2.82102446,3210.2,3208.9,3.11626821]
[1768800631665,0.513,3210.1,3208.8,3.1163991]
[1768800631824,0.513,3210.1,3208.6,3.11661047]
[1768800631825,6.23052958,3210.0,3208.5,6.2334424]
[1768800632024,6.23052958,3210.0,3208.5,8.92330771]
[1768800632226,3.77747986,3209.9,3208.6,0.89233077]
[1768800632526,0.513,3209.8,3208.5,16.99861558]
[1768800632724,0.513,3209.8,3208.6,2.68986531]
[1768800633549,0.513,3209.8,3208.6,2.71442773]
[1768800633771,0.9564554,3209.9,3208.6,2.71442773]
[1768800633941,0.513,3209.7,3208.6,2.71442773]
[1768800634145,0.513,3209.7,3208.9,0.002]
[1768800634345,0.97149717,3209.7,3208.9,0.002]
[1768800634661,0.513,3209.6,3208.9,0.002]
[1768800634867,0.513,3209.8,3208.9,0.002]
[1768800635169,3.33402446,3209.8,3208.9,0.002]
[1768800635827,2.82102446,3209.8,3208.9,0.002]
[1768800636058,0.79510245,3209.7,3208.9,0.002]
[1768800636261,3.91070743,3209.7,3208.9,0.002]
[1768800637031,0.28210245,3209.7,3208.9,0.002]
[1768800637236,0.513,3210.0,3208.9,2.69186531]
[1768800638669,0.513,3210.1,3209.0,7.24562124]
[1768800639979,4.45940209,3210.1,3208.9,0.002]
[1768800640138,3.94640209,3209.9,3208.9,0.002]
[1768800640529,3.1154589,3209.8,3208.9,0.002]
[1768800640728,3.94640209,3209.7,3208.9,0.002]
[1768800640966,4.45940209,3209.6,3208.9,0.002]
[1768800642867,4.45940209,3209.6,3208.5,3.842]
[1768800642868,3.94640209,3209.4,3208.5,3.842]
[1768800643036,3.94640209,3209.4,3208.5,0.002]
[1768800644175,3.94640209,3209.4,3207.7,3.11747891]
[1768800644475,3.94640209,3209.4,3207.7,6.95747891]
[1768800644669,3.94640209,3209.2,3207.7,3.84]
[1768800644844,3.94640209,3209.0,3207.7,6.95749201]
[1768800646075,3.94640209,3209.0,3207.7,10.07499052]
[1768800646276,3.94640209,3209.0,3207.8,4.12938566]
[1768800646647,3.11633269,3208.9,3207.9,3.11730415]
[1768800646845,3.11633269,3208.9,3208.0,4.12938566]
[1768800647182,0.513,3208.8,3208.0,4.12938566]
[1768800647679,0.513,3208.8,3207.9,3.84]
[1768800647877,1.18756654,3208.8,3207.9,3.84]
[1768800648176,0.513,3208.7,3207.9,3.84]
[1768800648338,0.513,3208.7,3207.8,11.08678085]
[1768800648941,6.23324814,3208.6,3207.6,0.002]
[1768800649170,4.25334575,3208.6,3207.6,0.002]
[1768800649377,7.36996982,3208.6,3207.6,0.002]
[1768800650060,11.31637191,3208.6,3207.6,0.002]
[1768800651651,3.94640209,3208.5,3207.6,0.002]
[1768800651962,3.94640209,3208.5,3207.3,0.002]
[1768800652160,3.94640209,3208.3,3207.3,0.002]
[1768800652362,3.94640209,3208.1,3207.3,0.002]
[1768800653019,3.11720698,3208.0,3207.3,0.002]
[1768800653220,6.23441396,3208.0,3207.3,0.002]
[1768800654137,4.9248581,3207.9,3207.3,0.002]
[1768800654301,4.9248581,3207.7,3207.3,0.002]
[1768800654482,0.513,3207.6,3207.3,0.002]
[1768800655082,1.4276479,3207.8,3206.7,4.9641604]
[1768800655322,0.513,3207.7,3206.7,4.9641604]
[1768800656183,6.23464134,3207.9,3206.7,4.9641604]
[1768800656379,0.513,3207.8,3206.7,4.9641604]
[1768800656949,4.9248581,3209.1,3207.1,4.9641604]
[1768800657226,1.59629457,3211.8,3207.0,8.73235286]
[1768800657227,11.67032926,3209.0,3207.3,4.9641604]
[1768800657428,5.4378581,3208.9,3207.5,4.9641604]
[1768800657589,3.11623558,3209.0,3207.5,4.9641604]
[1768800657785,3.62923558,3209.0,3207.5,4.9641604]
[1768800658029,4.9248581,3208.9,3207.7,4.9641604]
[1768800658197,4.9248581,3208.9,3207.4,4.9641604]
[1768800658535,4.9248581,3208.9,3205.4,3.119647]
[1768800658536,4.9248581,3208.9,3207.0,4.9641604]
[1768800658686,4.9248581,3208.9,3206.1,4.9641604]
[1768800658886,4.9248581,3208.7,3206.8,3.11830763]
[1768800659202,4.9248581,3208.7,3207.0,0.002]
[1768800659203,4.9248581,3208.5,3207.0,0.002]
[1768800659523,0.001,3207.7,3207.0,4.9661604]
[1768800659703,0.514,3207.7,3207.0,4.9661604]
[1768800660518,3.11701265,3208.2,3207.1,4.9641604]
[1768800660687,0.513,3208.0,3207.1,4.9641604]
[1768800661324,3.1167212,3208.5,3207.2,0.514]
[1768800661528,4.9248581,3208.4,3207.2,0.514]
[1768800661851,3.11576524,3209.5,3207.2,0.514]
[1768800661852,0.513,3209.2,3207.6,4.9641604]
[1768800661990,0.513,3209.2,3208.0,4.9641604]
[1768800662193,5.46864391,3209.1,3207.4,4.9641604]
[1768800662499,4.9248581,3208.9,3207.7,3.11749851]
[1768800662699,4.9248581,3208.9,3207.7,7.47149851]
[1768800662894,4.9248581,3208.9,3207.7,3.84]
[1768800663684,3.11623558,3209.0,3207.8,4.9641604]
[1768800664021,0.513,3208.9,3207.9,5.84457644]
[1768800665120,0.513,3208.9,3207.7,3.84]
[1768800665121,11.15771772,3208.8,3207.7,3.84]
[1768800665326,4.9248581,3208.7,3207.7,3.84]
[1768800666115,4.9248581,3208.7,3207.8,3.11733865]
[1768800666324,4.9248581,3208.7,3207.7,6.95746338]
[1768800666615,4.9248581,3208.7,3207.7,8.51279354]
[1768800666785,4.9248581,3208.7,3207.7,13.47695394]
[1768800667184,3.11662407,3208.6,3207.7,9.63695394]
[1768800667612,4.9248581,3208.7,3207.7,9.63695394]
[1768800667613,8.04142182,3208.7,3207.7,9.63695394]
[1768800667931,8.04142182,3208.7,3207.8,4.9641604]
[1768800667932,0.513,3208.7,3207.8,4.9641604]
[1768800669216,0.513,3208.7,3207.9,8.08142028]
[1768800669419,3.62942981,3208.8,3208.0,4.9641604]
[1768800670198,3.11642981,3208.8,3208.0,4.9641604]
[1768800671511,0.001,3208.4,3208.0,4.9641604]
[1768800671716,2.39366786,3208.9,3208.1,6.47]
[1768800671916,3.17682046,3208.9,3208.1,6.47]